Cogmind - Beta 9.4 BR @@@ ROGUE MODE // 2020.02.22 @ 22:27:03 // Experiment/BattleRoyale Player: Terminus Result: Core destroyed Performance ------------- Evolutions (0) 0 Regions Visited (0) 0 Robots Destroyed (4) 20 Value Destroyed (2000) 2000 Prototype IDs (5) 100 Alien Tech Used (0) 0 Bonus (0) 0 TOTAL SCORE: 2120 Bonus ------- None Cogmind --------- Core Integrity 0/250 Matter 300/300 Energy 266/315 System Corruption 2% Temperature Cool (134861) Movement Core (1450) Ox28 Location -5/Wartown Parts ------- > --- POWER (2) -------- Neutrino Core Light Antimatter Reactor > --- PROPULSION (5) --- Gravmag System Improved Gravmag System Improved Linear Gravjet Combat Antigrav System Combat Linear Gravjet > --- UTILITY (8) ------ Improved Cooling System Improved Cooling System Improved Coolant Injector Advanced Coolant Injector Weapon Cycler Advanced Reaction Control System Improved Medium Armor Plating > --- WEAPON (4) ------- Nova Cannon Nova Cannon Enhanced Nova Cannon Rocket Array > --- INVENTORY (4) ---- Makeshift Sensor Array Ion Burst Cannon Spear Peak State ------------ > --- POWER ------------ Neutrino Core Light Antimatter Reactor > --- PROPULSION ------- Gravmag System Improved Gravmag System Improved Linear Gravjet Combat Antigrav System Combat Linear Gravjet > --- UTILITY ---------- Improved Cooling System Improved Cooling System Improved Coolant Injector Advanced Coolant Injector Weapon Cycler Advanced Reaction Control System Improved Medium Armor Plating > --- WEAPON ----------- Nova Cannon Nova Cannon Enhanced Nova Cannon Rocket Array > --- INVENTORY -------- Makeshift Sensor Array Ion Burst Cannon Spear [Rating: 115] Favorites ----------- Power Neutrino Core Engine Improved Deuterium Engine Power Core Neutrino Core Reactor Light Antimatter Reactor Propulsion Combat Linear Gravjet Treads Heavy Treads Hover Unit Combat Linear Gravjet Flight Unit Field Propulsion Drive Utility Improved Cooling System Device Improved Cooling System Storage Medium Storage Unit Protection Improved Medium Armor Plating Weapon Nova Cannon Energy Gun Advanced Beam Rifle Energy Cannon Nova Cannon Ballistic Cannon Antimatter Cannon Launcher Rocket Array Piercing Weapon Spear Build | -5 ------- Run | Tow Slots Evolved . | . Power . | . Propulsion . | . Utility . | . Weapon . | . Parts Attached 33 | 33 Power 1 | 1 Engine . | . Core . | . Reactor 1 | 1 Propulsion 6 | 6 Treads . | . Leg . | . Wheel . | . Hover 6 | 6 Flight . | . Utility 11 | 11 Device 10 | 10 Storage . | . Processor . | . Hackware . | . Protection 1 | 1 Artifact . | . Weapon 15 | 15 Energy Gun 4 | 4 Energy Cannon 7 | 7 Ballistic Gun . | . Ballistic Cannon . | . Launcher 1 | 1 Special Weapon . | . Impact Weapon . | . Slashing Weapon . | . Piercing Weapon 3 | 3 Special Melee Weapon . | . Unidentified Prototypes 4 | 4 Parts Lost 2 | 2 Power . | . Propulsion . | . Utility 2 | 2 Weapon . | . Highest Loss Streak 2 | 2 Average Slot Usage (%) 91 | 91 Core 5 | 5 Reactor 4 | 4 Hover 23 | 23 Device 29 | 29 Protection 4 | 4 Energy Gun 1 | 1 Energy Cannon 13 | 13 Launcher 3 | 3 Naked Turns . | . Heaviest Build 86 | 86 Greatest Support 97 | 97 Greatest Overweight (x) 1 | 1 Average Overweight (x) . | . Largest Inventory Capacity 8 | 8 Average Capacity 4 | 4 Most Carried 8 | 8 Average Carried 3 | 3 Final Capacity 4 | 4 Final Carried 3 | 3 Class Distribution -------------------- 86% | Mutant 13% | Tank Dominant Class ---------------- Mutant | -5/Wartown Resources | -5 ----------- Run | Tow Matter Collected . | . Remotely . | . Salvage Created 310 | 310 Parts . | . Haulers Intercepted . | . Recyclers Shooed . | . Parts Field Recycled . | . Retrieved Matter . | . Parts Self-Destructed . | . Prevented . | . Kills | -5 ------- Run | Tow Combat Hostiles Destroyed 4 | 4 Melee 1 | 1 Guns 1 | 1 Cannons 2 | 2 Classes Destroyed 1 | 1 Player 4 | 4 Best Kill Streak 1 | 1 Combat Bots Only 1 | 1 Max Kills in Single Turn 1 | 1 Gunslinging . | . Exploded . | . Melee 1 | 1 Uniques/NPCs Destroyed . | . Combat | -5 -------- Run | Tow Damage Taken 673 | 673 Core 429 | 429 Absorbed by Shields 83 | 83 Redirected to Core 6039 | 6039 Core Remaining (%) . | . Volleys Fired 42 | 42 Largest 3 | 3 Hottest 346 | 346 Shots Fired 80 | 80 Gun 31 | 31 Cannon 49 | 49 Launcher . | . Special . | . Kinetic . | . Thermal 80 | 80 Explosive . | . Electromagnetic . | . Robot Hit Streak 28 | 28 Robot Miss Streak 1 | 1 Penetration Max . | . Secondary Targets . | . Shots Hit Robots 60 | 60 Core Hits 8 | 8 Critical Hits . | . Critical Kills . | . Critical Parts Destroyed . | . Melee Attacks 1 | 1 Impact . | . Slashing . | . Piercing 1 | 1 Sneak Attacks . | . Combat Hostiles . | . Follow-up Attacks . | . Damage Inflicted 2002 | 2002 Guns 616 | 616 Cannons 1352 | 1352 Explosions . | . Melee 34 | 34 Ramming . | . Kinetic . | . Thermal 1968 | 1968 Explosive . | . Electromagnetic . | . Impact . | . Slashing . | . Piercing 34 | 34 Highest Corruption 2 | 2 Average Corruption 1 | 1 Corruption Purged . | . Effects 38 | 38 Message Errors 18 | 18 Heat Flow Errors 7 | 7 Energy Discharges 3 | 3 Data Loss (minor) 8 | 8 Targeting Errors 2 | 2 Overload Shots . | . Overflow Damage 7 | 7 Projectiles 7 | 7 Explosions . | . Melee . | . Knockbacks . | . Impact . | . Kinetic . | . Secondary . | . Self-Inflicted Damage . | . Shots . | . Rammed . | . Targets Rammed . | . Kicked . | . Crushed . | . Highest Temperature 134861 | 134861 Average Temperature 20508 | 20508 Received Heat Transfer 92 | 92 Effects 95 | 95 Shutdowns 28 | 28 Energy Bleed 8 | 8 Interference 5 | 5 Matter Decay 7 | 7 Short Circuit 6 | 6 Damage (minor) 10 | 10 Damage (major) 26 | 26 Damage (core) 5 | 5 Siege Activations . | . Robots Corrupted . | . Combat Hostiles . | . Parts Fried . | . Impact Corruptions . | . Robots Melted . | . Combat Hostiles . | . Parts Melted 20 | 20 Heat Transferred 463 | 463 Parts Sabotaged . | . Parts Stolen . | . Parts Stripped . | . Power Chain Reactions . | . Missiles Intercepted . | . Alert | -5 ------- Run | Tow Peak Influence . | . Average Influence . | . Maximum Alert Level . | . Low Security (%) . | . Level 1 . | . Level 2 . | . Level 3 . | . Level 4 . | . Level 5 . | . High Security . | . Max Security . | . Squads Dispatched . | . Investigation . | . Extermination . | . Reinforcement . | . Assault . | . Garrison . | . Intercept . | . Construction Impeded . | . Haulers Reinforced . | . Stealth | -5 --------- Run | Tow Distress Signals . | . Communications Jammed . | . Distress Signals . | . Times Spotted 4 | 4 Peak Tracking Total 1 | 1 Tactical Retreats . | . Traps | -5 ------- Run | Tow Traps Triggered . | . Indirectly . | . Trap Hack Attempts . | . Triggered . | . Disarmed . | . Reprogrammed . | . Reused . | . Traps Extracted . | . Installed . | . Triggered . | . Machines | -5 ---------- Run | Tow Machines Disabled . | . Max in Single Turn . | . Machines Sabotaged . | . Garrisons Compromised . | . Overloaded Fab Kills . | . Fab Network Shutdowns . | . Hacking | -5 --------- Run | Tow Machines Accessed . | . Terminals . | . Fabricators . | . Repair Stations . | . Recycling Units . | . Scanalyzers . | . Garrison Access . | . Total Hacks . | . Successful . | . Failed . | . Catastrophic . | . Database Lockouts . | . Manual . | . Terminals . | . Fabricators . | . Repair Stations . | . Recycling Units . | . Scanalyzers . | . Garrison Access . | . Terminal Hacks . | . Fabricator Hacks . | . Repair Station Hacks . | . Recycling Unit Hacks . | . Scanalyzer . | . Garrison Access Hacks . | . Unauthorized Hacks . | . Terminals . | . Fabricators . | . Repair Stations . | . Recycling Units . | . Scanalyzers . | . Garrison Access . | . Data Cores Recovered . | . Used . | . Hacking Detections . | . Full Trace Events . | . Feedback Events . | . Feedback Blocked . | . Robot Schematics Acquired . | . Robots Built . | . Matter . | . Time . | . Total Robot Build Rating . | . Part Schematics Acquired . | . Parts Built . | . Matter . | . Time . | . Total Part Build Rating . | . Parts Repaired . | . Time . | . Parts Recycled . | . Recycled Matter . | . Retrieved Matter . | . Retrieved Components . | . Parts Scanalyzed . | . Part Schematics Acquired . | . Parts Damaged . | . Bothacking | -5 ------------ Run | Tow Used RIF Installer . | . Robots Hacked . | . Non-combat . | . Combat . | . Robot Hacks Applied . | . Relay Couplers Released . | . Robots Rewired . | . Allies Hacked . | . Hacks Repelled . | . Allies | -5 -------- Run | Tow Total Allies . | . Largest Group . | . Highest-Rated Group . | . Highest-Rated Ally . | . Total Orders . | . Ally Attacks . | . Total Damage . | . Kills . | . Allies Corrupted . | . Allies Melted . | . Intel | -5 ------- Run | Tow Robot Analysis Total . | . Derelict Logs Recovered . | . Drone Launches . | . Drone Recoveries . | . Exploration | -5 ------------- Run | Tow Turns Passed 5224 | 5224 Spaces Moved 1228 | 1228 Core . | . Treads 166 | 166 Legs . | . Wheels . | . Hover 1062 | 1062 Flight . | . Fastest Speed 48 | 48 Average Speed 70 | 70 Slowest Speed 165 | 165 Overloaded Moves . | . Propulsion Burnouts . | . Robots Hopped . | . Cave-ins Triggered . | . Exploration Rate (%) 36 | 36 Regions Visited 1 Branch Regions 1 Pre-discovered Areas . | . Known Exits Taken . | . Unknown Exits Taken . | . Scrap Searched . | . Spaces Dug 7 | 7 Terrain Destroyed 9 | 9 Melee . | . Projectile 9 | 9 AOE . | . Actions | -5 --------- Run | Tow Total 5520 | 5520 Wait 4180 | 4180 Move 1228 | 1228 Hop . | . Pick Up 15 | 15 Fast Attach 15 | 15 Attach 5 | 5 Detach . | . Swap 13 | 13 Drop 21 | 21 Fire 42 | 42 Melee 1 | 1 Ram . | . Kick . | . Crush . | . Escape Stasis . | . Rewire . | . Trap . | . Miscellaneous . | . Route ------- -5/Wartown History --------- Turn | Location | Event 407 | -5/Wartown | Build established: Mutant 1072 | -5/Wartown | Build established: Tank 1211 | -5/Wartown | Core integrity fell below 50% 1215 | -5/Wartown | Found Prototype Launcher 1215 | -5/Wartown | Identified Rocket Array 1486 | -5/Wartown | Build established: Mutant 5212 | -5/Wartown | Core integrity fell below 20% 5226 | -5/Wartown | Core destroyed Last Messages --------------- 05200_ Overheating: Energy bleed (-38). 05202_ Overheating: Imp. Medium Armor Plating damaged (-55). 05202_ Overheating: Broken Cmb. Antigrav System damaged (-47). 05202_ Overheating: Broken Gravmag System damaged (-14). 05202_ Overheating: Enh. Nova Cannon damaged (-8). 05204_ Overheating: Broken Imp. Cooling System damaged (-23). 05205_ Power failure, Neutrino Core shutdown. 05206_ Power failure, Lgt. Antimatter Reactor shutdown. 05209_ Overheating: Matter decay (-30). 05212_ Power failure, Neutrino Core shutdown. 05212_ Overheating: Core damaged (-42). 05213_ Power failure, Lgt. Antimatter Reactor shutdown. 05218_ Lgt. Antimatter Reactor permanently disabled. 05218_ Overheating: Short circuit. 05221_ Power failure, Neutrino Core shutdown. 05221_ Overheating: Adv. Coolant Injector damaged (-5). 05221_ Overheating: Neutrino Core damaged (-7). 05224_ Overheating: Core damaged (-27). 05225_ Overheating: Matter decay (-54). 05226_ Overheating: Core damaged (-25). Map ----- +----------------------------------------------------+ | # # """? | | # # "" "??? | | # # # # " """ ""? | | ####" ######## #### | | # ????? # """ """ """ | | # ??? # """ """ """ | | # # # """ """ """ | | ## # ? "" # | | # ?# """ # | | # # """ + | | # ?# # ## | | # # # # | | # ?# ?# # | | # ?### ## # | | # ???# ! + | | ###### ####### #######"### # | | # # # | | # # # | | # # # | | # # # | | #######"+## ## | | | | | | | | | | @ ####+ | | # | | # | | # | | # | | # """ | | # """ | | + """ | | # | | [ # """ | | ## # ####+##+# """ | | # ?????# """ | | # "" ""?????# | | # """ """????##### | | + """ """ #???? | | # #???? | | ???? # """ """ #???? | | ???? ########## # """ """ ???????? | | ???? # # # """ """ #???? | | ???? # + + #???? | | ???? # # # #???? | | ???? # # # #???? | | ??? # ?# # #???? | | ?# = ########## ###############???? | | ?# ######+####+## # #?????????????????? | +----------------------------------------------------+ Best States ------------- Heat Dissipation 79 Coolant Potential 180 Energy Generation 35 Energy Capacity 505 Matter Stores 300 Matter Capacity 300 Sight Range 16 Terrain Scan Density 10 Base Temperature (-) 150 Armor Coverage 225 Weapon Cycling 15 Evasion (%) 69 Recoil Reduction 3 Particle Charging 15 Item Schematics ----------------- None Robot Schematics ------------------ None Fabricated ------------ Nothing Alien Tech Used ----------------- None Achievements -------------- None Challenges ------------ None Game ------ Seed RemoteSeismicDatajack Manual? 0 Play Time 00:18:59 Cumulative 1019.1 hours Start 2020.02.22 @ 22:08:23 End 2020.02.22 @ 22:27:03 Sessions 1 Manual Loads 0 Difficulty Rogue Special Mode Experiment/BattleRoyale Game No. 330 Rogue 330 Adventurer 0 Explorer 0 Win Type - Total 76 Types 14/8/34/5/1/2/12 Lore% 97 Gallery% 95 Achievement% 84 Wizard Run 0 Options --------- ASCII 0 Keyboard 0 Movement Numpad Keybinds 0 Fullscreen 1 Font 18/SmallcapsGlow Map View 76x50 Tactical HUD 1 Map Filters NONE Filters NONE Steam 0 RUN: b17bddef-07e7-4bd5-a700-f8903e60a841